[Event "Titled Tuesday Blitz April 12 Early 2022"]
[White "Skytte, Rasmus"]
[Black "Palachev, Petr"]
[WhiteFideId "1404210"]
[BlackFideId "24129003"]
[WhiteElo "2430"]
[BlackElo "2339"]
[Result "0-1"]
[Round "01"]
[TimeControl "180+1"]
[Date "2022.04.13"]
[WhiteClock "0:01:51"]
[BlackClock "0:02:23"]

1. e4 {[%clk 0:02:54]}  c6 {[%clk 0:02:57]} 2. d4 {[%clk 0:02:53]}  d5 {[%clk 0:02:58]} 3. e5 {[%clk 0:02:52]}  Bf5 {[%clk 0:02:58]} 4. Nc3 {[%clk 0:02:51]}  e6 {[%clk 0:02:58]} 5. g4 {[%clk 0:02:51]}  Bg6 {[%clk 0:02:59]} 6. Nge2 {[%clk 0:02:50]}  f6 {[%clk 0:02:58]} 7. h4 {[%clk 0:02:48]}  fxe5 {[%clk 0:02:54]} 8. h5 {[%clk 0:02:47]}  Bf7 {[%clk 0:02:51]} 9. dxe5 {[%clk 0:02:46]}  c5 {[%clk 0:02:50]} 10. f4 {[%clk 0:02:45]}  Nc6 {[%clk 0:02:51]} 11. Ng3 {[%clk 0:02:43]}  Qb6 {[%clk 0:02:39]} 12. Bb5 {[%clk 0:02:39]}  O-O-O {[%clk 0:02:39]} 13. Bxc6 {[%clk 0:02:35]}  Qxc6 {[%clk 0:02:38]} 14. b3 {[%clk 0:02:24]}  c4 {[%clk 0:02:30]} 15. Bb2 {[%clk 0:02:11]}  Bb4 {[%clk 0:02:27]} 16. a3 {[%clk 0:01:51]}  Bxc3+ {[%clk 0:02:27]} 17. Bxc3 {[%clk 0:01:52]}  cxb3 {[%clk 0:02:24]} 18. O-O {[%clk 0:01:52]}  Qxc3 {[%clk 0:02:23]} 19. cxb3 {[%clk 0:01:51]}  Qxg3+ {[%clk 0:02:23]} 0-1


[Site "https://www.chess.com"]

[Event "Titled Tuesday Blitz April 12 Early 2022"]
[White "Stanisz, Patryk"]
[Black "Maevsky, Nikolay"]
[WhiteFideId "1123106"]
[BlackFideId "4198220"]
[WhiteElo "1833"]
[BlackElo "2126"]
[Result "0-1"]
[Round "01"]
[TimeControl "180+1"]
[Date "2022.04.13"]
[WhiteClock "0:00:02"]
[BlackClock "0:00:44"]

1. d4 {[%clk 0:02:58]}  d5 {[%clk 0:02:59]} 2. c4 {[%clk 0:02:58]}  Nc6 {[%clk 0:03:00]} 3. Nf3 {[%clk 0:02:57]}  Bg4 {[%clk 0:03:00]} 4. cxd5 {[%clk 0:02:56]}  Bxf3 {[%clk 0:02:59]} 5. gxf3 {[%clk 0:02:54]}  Qxd5 {[%clk 0:02:59]} 6. e3 {[%clk 0:02:52]}  e5 {[%clk 0:02:59]} 7. Nc3 {[%clk 0:02:52]}  Bb4 {[%clk 0:03:00]} 8. Bd2 {[%clk 0:02:53]}  Bxc3 {[%clk 0:03:00]} 9. bxc3 {[%clk 0:02:53]}  Qd6 {[%clk 0:03:01]} 10. Qb3 {[%clk 0:02:40]}  b6 {[%clk 0:02:55]} 11. Bb5 {[%clk 0:02:34]}  O-O-O {[%clk 0:02:54]} 12. Qxf7 {[%clk 0:02:18]}  Nge7 {[%clk 0:02:54]} 13. Qb3 {[%clk 0:01:57]}  Nf5 {[%clk 0:02:31]} 14. Ke2 {[%clk 0:01:02]}  exd4 {[%clk 0:02:29]} 15. Bxc6 {[%clk 0:01:02]}  d3+ {[%clk 0:02:27]} 16. Kd1 {[%clk 0:00:56]}  Qxc6 {[%clk 0:02:27]} 17. e4 {[%clk 0:00:57]}  Nh4 {[%clk 0:02:26]} 18. Bg5 {[%clk 0:00:52]}  Nxf3 {[%clk 0:02:26]} 19. Bxd8 {[%clk 0:00:50]}  Qxe4 {[%clk 0:02:27]} 20. Kc1 {[%clk 0:00:36]}  Qf4+ {[%clk 0:02:13]} 21. Kb2 {[%clk 0:00:32]}  Rxd8 {[%clk 0:02:10]} 22. Rad1 {[%clk 0:00:29]}  Ne5 {[%clk 0:02:06]} 23. Rhe1 {[%clk 0:00:26]}  Qxf2+ {[%clk 0:01:45]} 24. Ka1 {[%clk 0:00:26]}  Nf3 {[%clk 0:01:39]} 25. Rf1 {[%clk 0:00:22]}  Qe2 {[%clk 0:01:38]} 26. Qb5 {[%clk 0:00:18]}  Kb7 {[%clk 0:01:23]} 27. Qf5 {[%clk 0:00:16]}  Nxh2 {[%clk 0:01:01]} 28. Rfe1 {[%clk 0:00:16]}  Qc2 {[%clk 0:00:57]} 29. Qe4+ {[%clk 0:00:08]}  Kb8 {[%clk 0:00:52]} 30. Qb4 {[%clk 0:00:03]}  d2 {[%clk 0:00:47]} 31. Rf1 {[%clk 0:00:02]}  Nxf1 {[%clk 0:00:46]} 32. Rxf1 {[%clk 0:00:01]}  d1=R+ {[%clk 0:00:45]} 33. Rxd1 {[%clk 0:00:01]}  Rxd1+ {[%clk 0:00:44]} 34. Qb1 {[%clk 0:00:02]}  Rxb1# {[%clk 0:00:44]} 0-1


[Site "https://www.chess.com"]

[Event "Titled Tuesday Blitz April 12 Early 2022"]
[White "Tanenbaum, Zachary"]
[Black "Almeida Junior, Alvaro Alves de"]
[WhiteFideId "2060850"]
[BlackFideId "2149974"]
[WhiteElo "2168"]
[BlackElo "2086"]
[Result "1-0"]
[Round "01"]
[TimeControl "180+1"]
[Date "2022.04.13"]
[WhiteClock "0:01:49"]
[BlackClock "0:01:04"]

1. e4 {[%clk 0:02:59]}  c5 {[%clk 0:02:59]} 2. Nf3 {[%clk 0:02:59]}  d6 {[%clk 0:02:59]} 3. d4 {[%clk 0:03:00]}  cxd4 {[%clk 0:02:59]} 4. Nxd4 {[%clk 0:03:01]}  Nf6 {[%clk 0:03:00]} 5. Nc3 {[%clk 0:03:01]}  a6 {[%clk 0:03:00]} 6. Be3 {[%clk 0:03:02]}  e5 {[%clk 0:03:00]} 7. Nb3 {[%clk 0:03:02]}  Be6 {[%clk 0:03:01]} 8. h3 {[%clk 0:03:02]}  Nbd7 {[%clk 0:02:59]} 9. g4 {[%clk 0:03:02]}  Nb6 {[%clk 0:02:50]} 10. g5 {[%clk 0:02:59]}  Nfd7 {[%clk 0:02:49]} 11. Qd2 {[%clk 0:02:58]}  Rc8 {[%clk 0:02:48]} 12. O-O-O {[%clk 0:02:58]}  Qc7 {[%clk 0:02:47]} 13. Kb1 {[%clk 0:02:57]}  Nc4 {[%clk 0:02:43]} 14. Bxc4 {[%clk 0:02:57]}  Bxc4 {[%clk 0:02:44]} 15. h4 {[%clk 0:02:55]}  b5 {[%clk 0:02:43]} 16. h5 {[%clk 0:02:55]}  b4 {[%clk 0:02:34]} 17. Nd5 {[%clk 0:02:55]}  Bxd5 {[%clk 0:02:33]} 18. Qxd5 {[%clk 0:02:44]}  Qc6 {[%clk 0:01:54]} 19. Qd3 {[%clk 0:02:39]}  Be7 {[%clk 0:01:49]} 20. g6 {[%clk 0:02:38]}  hxg6 {[%clk 0:01:49]} 21. hxg6 {[%clk 0:02:39]}  Rxh1 {[%clk 0:01:49]} 22. gxf7+ {[%clk 0:02:38]}  Kxf7 {[%clk 0:01:49]} 23. Rxh1 {[%clk 0:02:39]}  a5 {[%clk 0:01:44]} 24. Nxa5 {[%clk 0:02:33]}  Qa8 {[%clk 0:01:15]} 25. Nc4 {[%clk 0:02:02]}  Nf6 {[%clk 0:01:15]} 26. Nb6 {[%clk 0:01:58]}  Qc6 {[%clk 0:01:10]} 27. Qb3+ {[%clk 0:01:53]}  Kg6 {[%clk 0:01:04]} 28. Nxc8 {[%clk 0:01:52]}  Qxc8 {[%clk 0:01:04]} 29. Rg1+ {[%clk 0:01:51]}  Kh7 {[%clk 0:01:04]} 30. Qf7 {[%clk 0:01:49]} 1-0


[Site "https://www.chess.com"]

[Event "Titled Tuesday Blitz April 12 Early 2022"]
[White "Tari, Aryan"]
[Black "Ianov, Viktor"]
[WhiteFideId "1510045"]
[BlackFideId "14102730"]
[WhiteElo "2567"]
[BlackElo "2161"]
[Result "1-0"]
[Round "01"]
[TimeControl "180+1"]
[Date "2022.04.12"]
[WhiteClock "0:00:15"]
[BlackClock "0:00:29"]

1. c4 {[%clk 0:02:33]}  d6 {[%clk 0:02:59]} 2. g3 {[%clk 0:02:31]}  g6 {[%clk 0:02:59]} 3. Bg2 {[%clk 0:02:30]}  Bg7 {[%clk 0:02:59]} 4. Nc3 {[%clk 0:02:31]}  Nf6 {[%clk 0:02:59]} 5. e3 {[%clk 0:02:29]}  O-O {[%clk 0:02:59]} 6. Nge2 {[%clk 0:02:30]}  c5 {[%clk 0:02:59]} 7. O-O {[%clk 0:02:26]}  Nc6 {[%clk 0:02:59]} 8. d4 {[%clk 0:02:27]}  Bg4 {[%clk 0:02:58]} 9. b3 {[%clk 0:02:21]}  Qd7 {[%clk 0:02:50]} 10. Bb2 {[%clk 0:02:21]}  Bh3 {[%clk 0:02:49]} 11. Qd2 {[%clk 0:02:18]}  Bxg2 {[%clk 0:02:49]} 12. Kxg2 {[%clk 0:02:19]}  cxd4 {[%clk 0:02:48]} 13. exd4 {[%clk 0:02:18]}  d5 {[%clk 0:02:47]} 14. Rad1 {[%clk 0:02:17]}  Rfd8 {[%clk 0:02:46]} 15. Na4 {[%clk 0:02:05]}  b6 {[%clk 0:02:41]} 16. h3 {[%clk 0:01:58]}  Ne4 {[%clk 0:02:40]} 17. Qe3 {[%clk 0:01:58]}  e6 {[%clk 0:02:40]} 18. Nac3 {[%clk 0:01:58]}  Nxc3 {[%clk 0:02:35]} 19. Bxc3 {[%clk 0:01:57]}  Rac8 {[%clk 0:02:32]} 20. Nf4 {[%clk 0:01:54]}  Ne7 {[%clk 0:02:28]} 21. Qe2 {[%clk 0:01:41]}  dxc4 {[%clk 0:02:22]} 22. bxc4 {[%clk 0:01:42]}  b5 {[%clk 0:02:21]} 23. Ba5 {[%clk 0:01:41]}  Rxc4 {[%clk 0:02:10]} 24. Bxd8 {[%clk 0:01:40]}  Qxd8 {[%clk 0:02:11]} 25. d5 {[%clk 0:01:37]}  Nxd5 {[%clk 0:02:04]} 26. Nxd5 {[%clk 0:01:36]}  exd5 {[%clk 0:02:05]} 27. Rfe1 {[%clk 0:01:36]}  Bf8 {[%clk 0:01:58]} 28. Qf3 {[%clk 0:01:24]}  d4 {[%clk 0:01:54]} 29. Re5 {[%clk 0:01:25]}  a6 {[%clk 0:01:52]} 30. Rd5 {[%clk 0:01:19]}  Qe7 {[%clk 0:01:49]} 31. R5xd4 {[%clk 0:01:18]}  Rxd4 {[%clk 0:01:45]} 32. Rxd4 {[%clk 0:01:19]}  Kg7 {[%clk 0:01:42]} 33. h4 {[%clk 0:01:18]}  Qe6 {[%clk 0:01:39]} 34. Qd5 {[%clk 0:01:17]}  Qxd5+ {[%clk 0:01:33]} 35. Rxd5 {[%clk 0:01:18]}  h5 {[%clk 0:01:30]} 36. Rd7 {[%clk 0:01:18]}  Bc5 {[%clk 0:01:27]} 37. Rc7 {[%clk 0:01:18]}  Bd4 {[%clk 0:01:23]} 38. Rc6 {[%clk 0:01:17]}  a5 {[%clk 0:01:23]} 39. Rd6 {[%clk 0:01:18]}  Bc3 {[%clk 0:01:20]} 40. Ra6 {[%clk 0:01:18]}  a4 {[%clk 0:01:16]} 41. f4 {[%clk 0:01:11]}  f5 {[%clk 0:01:15]} 42. Kf3 {[%clk 0:01:11]}  Kf7 {[%clk 0:01:14]} 43. Ke3 {[%clk 0:01:10]}  Be1 {[%clk 0:01:13]} 44. Kf3 {[%clk 0:01:02]}  Kg7 {[%clk 0:01:12]} 45. Re6 {[%clk 0:00:59]}  Bc3 {[%clk 0:01:10]} 46. Rc6 {[%clk 0:00:53]}  b4 {[%clk 0:01:09]} 47. Ra6 {[%clk 0:00:52]}  a3 {[%clk 0:01:09]} 48. Ke3 {[%clk 0:00:52]}  Kf7 {[%clk 0:01:08]} 49. Kd3 {[%clk 0:00:36]}  Be1 {[%clk 0:01:07]} 50. Rb6 {[%clk 0:00:37]}  Bxg3 {[%clk 0:01:02]} 51. Rxb4 {[%clk 0:00:37]}  Bxh4 {[%clk 0:01:02]} 52. Ra4 {[%clk 0:00:37]}  Be7 {[%clk 0:01:02]} 53. Kd4 {[%clk 0:00:35]}  h4 {[%clk 0:01:02]} 54. Ke3 {[%clk 0:00:35]}  Kg7 {[%clk 0:01:00]} 55. Ra7 {[%clk 0:00:33]}  Kf6 {[%clk 0:00:59]} 56. Ra6+ {[%clk 0:00:34]}  Kg7 {[%clk 0:00:58]} 57. Kf3 {[%clk 0:00:35]}  Kh6 {[%clk 0:00:56]} 58. Kg2 {[%clk 0:00:35]}  Kh5 {[%clk 0:00:53]} 59. Kh3 {[%clk 0:00:35]}  g5 {[%clk 0:00:51]} 60. fxg5 {[%clk 0:00:28]}  Kxg5 {[%clk 0:00:51]} 61. Ra7 {[%clk 0:00:28]}  Bd6 {[%clk 0:00:50]} 62. Rg7+ {[%clk 0:00:28]}  Kf6 {[%clk 0:00:49]} 63. Rg8 {[%clk 0:00:28]}  Kf7 {[%clk 0:00:46]} 64. Rg5 {[%clk 0:00:21]}  Ke6 {[%clk 0:00:44]} 65. Rg6+ {[%clk 0:00:18]}  Kd5 {[%clk 0:00:43]} 66. Kxh4 {[%clk 0:00:17]}  Be5 {[%clk 0:00:42]} 67. Rb6 {[%clk 0:00:16]}  Ke4 {[%clk 0:00:39]} 68. Kh3 {[%clk 0:00:16]}  f4 {[%clk 0:00:39]} 69. Kg2 {[%clk 0:00:14]}  f3+ {[%clk 0:00:39]} 70. Kf1 {[%clk 0:00:15]}  Bd4 {[%clk 0:00:39]} 71. Rb4 {[%clk 0:00:13]}  Kd3 {[%clk 0:00:39]} 72. Rb3+ {[%clk 0:00:13]}  Bc3 {[%clk 0:00:37]} 73. Rxa3 {[%clk 0:00:13]}  Kc2 {[%clk 0:00:37]} 74. Rb3 {[%clk 0:00:13]}  Bd4 {[%clk 0:00:33]} 75. Rxf3 {[%clk 0:00:14]}  Kb2 {[%clk 0:00:33]} 76. a4 {[%clk 0:00:15]}  Bb6 {[%clk 0:00:32]} 77. Ke2 {[%clk 0:00:14]}  Ba5 {[%clk 0:00:31]} 78. Rd3 {[%clk 0:00:14]}  Bb4 {[%clk 0:00:30]} 79. Kf3 {[%clk 0:00:14]}  Bc3 {[%clk 0:00:30]} 80. Ke4 {[%clk 0:00:15]}  Ba5 {[%clk 0:00:29]} 81. Kd5 {[%clk 0:00:15]} 1-0


[Site "https://www.chess.com"]

[Event "Titled Tuesday Blitz April 12 Early 2022"]
[White "Vokhidov, Shamsiddin"]
[Black "Kadam, Om Manish"]
[WhiteFideId "14204223"]
[BlackFideId "45076294"]
[WhiteElo "2611"]
[BlackElo "1729"]
[Result "1-0"]
[Round "01"]
[TimeControl "180+1"]
[Date "2022.04.12"]
[WhiteClock "0:02:13"]
[BlackClock "0:00:39"]

1. e4 {[%clk 0:03:00]}  c6 {[%clk 0:02:41]} 2. d4 {[%clk 0:03:00]}  d5 {[%clk 0:02:42]} 3. e5 {[%clk 0:03:00]}  c5 {[%clk 0:02:42]} 4. Nf3 {[%clk 0:03:00]}  Nc6 {[%clk 0:02:42]} 5. dxc5 {[%clk 0:03:00]}  Bg4 {[%clk 0:02:40]} 6. c3 {[%clk 0:02:59]}  e6 {[%clk 0:02:39]} 7. b4 {[%clk 0:02:59]}  Nxe5 {[%clk 0:02:35]} 8. Qa4+ {[%clk 0:02:51]}  Nd7 {[%clk 0:02:33]} 9. Ne5 {[%clk 0:02:49]}  Bf5 {[%clk 0:02:23]} 10. Bb5 {[%clk 0:02:45]}  Nf6 {[%clk 0:02:22]} 11. Bg5 {[%clk 0:02:44]}  a6 {[%clk 0:01:41]} 12. Bxd7+ {[%clk 0:02:27]}  Ke7 {[%clk 0:01:36]} 13. c6 {[%clk 0:02:26]}  b5 {[%clk 0:01:28]} 14. Qd1 {[%clk 0:02:19]}  h6 {[%clk 0:01:28]} 15. Qd4 {[%clk 0:02:16]}  Qb8 {[%clk 0:00:41]} 16. Qc5+ {[%clk 0:02:12]}  Kd8 {[%clk 0:00:39]} 17. Nxf7+ {[%clk 0:02:13]}  Kc7 {[%clk 0:00:39]} 18. Bf4+ {[%clk 0:02:13]} 1-0


[Site "https://www.chess.com"]

[Event "Titled Tuesday Blitz April 12 Early 2022"]
[White "Vusatiuk, Vladimir"]
[Black "Steil-Antoni, Fiona"]
[WhiteFideId "14118610"]
[BlackFideId "4001249"]
[WhiteElo "2157"]
[BlackElo "2059"]
[Result "1-0"]
[Round "01"]
[TimeControl "180+1"]
[Date "2022.04.13"]
[WhiteClock "0:00:11"]
[BlackClock "0:00:05"]

1. d4 {[%clk 0:02:58]}  d6 {[%clk 0:02:56]} 2. e4 {[%clk 0:02:54]}  Nd7 {[%clk 0:02:54]} 3. c4 {[%clk 0:02:52]}  Ngf6 {[%clk 0:02:54]} 4. Nc3 {[%clk 0:02:51]}  e5 {[%clk 0:02:54]} 5. Nf3 {[%clk 0:02:52]}  Be7 {[%clk 0:02:49]} 6. g3 {[%clk 0:02:48]}  O-O {[%clk 0:02:46]} 7. Bg2 {[%clk 0:02:48]}  c6 {[%clk 0:02:45]} 8. O-O {[%clk 0:02:47]}  Re8 {[%clk 0:02:40]} 9. h3 {[%clk 0:02:45]}  Bf8 {[%clk 0:02:20]} 10. Be3 {[%clk 0:02:32]}  exd4 {[%clk 0:02:03]} 11. Nxd4 {[%clk 0:02:33]}  Ne5 {[%clk 0:02:02]} 12. b3 {[%clk 0:02:27]}  Ng6 {[%clk 0:01:34]} 13. Qc2 {[%clk 0:02:20]}  Be6 {[%clk 0:00:49]} 14. Rad1 {[%clk 0:02:19]}  Qc7 {[%clk 0:00:47]} 15. f4 {[%clk 0:02:13]}  Bd7 {[%clk 0:00:47]} 16. Bf2 {[%clk 0:02:02]}  Rad8 {[%clk 0:00:45]} 17. Kh2 {[%clk 0:02:00]}  a6 {[%clk 0:00:40]} 18. Rfe1 {[%clk 0:01:16]}  Bc8 {[%clk 0:00:35]} 19. a4 {[%clk 0:00:57]}  h5 {[%clk 0:00:27]} 20. Qb2 {[%clk 0:00:50]}  h4 {[%clk 0:00:27]} 21. Nf3 {[%clk 0:00:34]}  hxg3+ {[%clk 0:00:26]} 22. Bxg3 {[%clk 0:00:35]}  Nh5 {[%clk 0:00:26]} 23. Qc1 {[%clk 0:00:32]}  Nxg3 {[%clk 0:00:25]} 24. Kxg3 {[%clk 0:00:33]}  Qe7 {[%clk 0:00:20]} 25. h4 {[%clk 0:00:15]}  Qf6 {[%clk 0:00:20]} 26. h5 {[%clk 0:00:14]}  Ne7 {[%clk 0:00:20]} 27. Rh1 {[%clk 0:00:12]}  g6 {[%clk 0:00:19]} 28. hxg6 {[%clk 0:00:12]}  Qxg6+ {[%clk 0:00:20]} 29. Kf2 {[%clk 0:00:12]}  Bg7 {[%clk 0:00:20]} 30. Rdg1 {[%clk 0:00:11]}  Qf6 {[%clk 0:00:19]} 31. Bf1 {[%clk 0:00:10]}  Ng6 {[%clk 0:00:18]} 32. Ne2 {[%clk 0:00:09]}  d5 {[%clk 0:00:17]} 33. f5 {[%clk 0:00:08]}  Bxf5 {[%clk 0:00:16]} 34. exf5 {[%clk 0:00:08]}  Qxf5 {[%clk 0:00:17]} 35. Nd4 {[%clk 0:00:06]}  Bxd4+ {[%clk 0:00:16]} 36. Kg2 {[%clk 0:00:06]}  Bg7 {[%clk 0:00:16]} 37. Qd1 {[%clk 0:00:04]}  Re4 {[%clk 0:00:15]} 38. Bd3 {[%clk 0:00:04]}  Rg4+ {[%clk 0:00:15]} 39. Kf2 {[%clk 0:00:05]}  Qf4 {[%clk 0:00:13]} 40. Rxg4 {[%clk 0:00:05]}  Qxg4 {[%clk 0:00:14]} 41. Rg1 {[%clk 0:00:05]}  Qf4 {[%clk 0:00:13]} 42. Bxg6 {[%clk 0:00:05]}  fxg6 {[%clk 0:00:13]} 43. Rxg6 {[%clk 0:00:05]}  Rf8 {[%clk 0:00:14]} 44. Qd3 {[%clk 0:00:04]}  Kh8 {[%clk 0:00:12]} 45. Rg2 {[%clk 0:00:04]}  Bd4+ {[%clk 0:00:11]} 46. Ke2 {[%clk 0:00:04]}  Re8+ {[%clk 0:00:10]} 47. Kd1 {[%clk 0:00:03]}  Bg7 {[%clk 0:00:09]} 48. Rh2+ {[%clk 0:00:04]}  Kg8 {[%clk 0:00:09]} 49. Qh7+ {[%clk 0:00:04]}  Kf8 {[%clk 0:00:09]} 50. Qh5 {[%clk 0:00:03]}  Qf7 {[%clk 0:00:03]} 51. Qg4 {[%clk 0:00:02]}  Qe7 {[%clk 0:00:02]} 52. Qf4+ {[%clk 0:00:01]}  Kg8 {[%clk 0:00:02]} 53. Rd2 {[%clk 0:00:01]}  Qe6 {[%clk 0:00:02]} 54. Qg3 {[%clk 0:00:02]}  Qf6 {[%clk 0:00:02]} 55. Kc1 {[%clk 0:00:02]}  Qa1+ {[%clk 0:00:03]} 56. Kc2 {[%clk 0:00:02]}  Qb2+ {[%clk 0:00:03]} 57. Kd1 {[%clk 0:00:03]}  Qa1+ {[%clk 0:00:04]} 58. Kc2 {[%clk 0:00:04]}  Qf6 {[%clk 0:00:04]} 59. Kc1 {[%clk 0:00:04]}  Kf7 {[%clk 0:00:05]} 60. Kc2 {[%clk 0:00:05]}  Bh6 {[%clk 0:00:05]} 61. Rd1 {[%clk 0:00:06]}  Qg6+ {[%clk 0:00:04]} 62. Qxg6+ {[%clk 0:00:06]}  Kxg6 {[%clk 0:00:05]} 63. Nd4 {[%clk 0:00:07]}  Bg7 {[%clk 0:00:05]} 64. cxd5 {[%clk 0:00:07]}  cxd5 {[%clk 0:00:04]} 65. Nf3 {[%clk 0:00:08]}  Rc8+ {[%clk 0:00:04]} 66. Kb1 {[%clk 0:00:07]}  d4 {[%clk 0:00:05]} 67. Nxd4 {[%clk 0:00:07]}  Rd8 {[%clk 0:00:05]} 68. Rg1+ {[%clk 0:00:07]}  Kf7 {[%clk 0:00:05]} 69. Rxg7+ {[%clk 0:00:07]}  Kxg7 {[%clk 0:00:04]} 70. Ne6+ {[%clk 0:00:07]}  Kf7 {[%clk 0:00:03]} 71. Nxd8+ {[%clk 0:00:08]}  Ke7 {[%clk 0:00:03]} 72. Nxb7 {[%clk 0:00:09]}  Kd7 {[%clk 0:00:04]} 73. Nc5+ {[%clk 0:00:10]}  Kc6 {[%clk 0:00:04]} 74. Nxa6 {[%clk 0:00:10]}  Kb6 {[%clk 0:00:05]} 75. Nb8 {[%clk 0:00:11]} 1-0


[Site "https://www.chess.com"]

[Event "Titled Tuesday Blitz April 12 Early 2022"]
[White "Wesolowska, Hanna"]
[Black "Ozer, Omer Faruk"]
[WhiteFideId "1104683"]
[BlackFideId "6354564"]
[WhiteElo "2313"]
[BlackElo "2050"]
[Result "0-1"]
[Round "01"]
[TimeControl "180+1"]
[Date "2022.04.13"]
[WhiteClock "0:00:16"]
[BlackClock "0:00:45"]

1. e4 {[%clk 0:02:25]}  e5 {[%clk 0:02:59]} 2. Nf3 {[%clk 0:02:24]}  Nc6 {[%clk 0:03:00]} 3. d4 {[%clk 0:02:23]}  exd4 {[%clk 0:02:59]} 4. Bc4 {[%clk 0:02:21]}  Nf6 {[%clk 0:02:58]} 5. e5 {[%clk 0:02:21]}  Ne4 {[%clk 0:02:52]} 6. O-O {[%clk 0:02:19]}  Be7 {[%clk 0:02:49]} 7. Re1 {[%clk 0:02:18]}  Nc5 {[%clk 0:02:49]} 8. Nxd4 {[%clk 0:02:16]}  Nxd4 {[%clk 0:02:48]} 9. Qxd4 {[%clk 0:02:17]}  O-O {[%clk 0:02:46]} 10. Nc3 {[%clk 0:02:17]}  c6 {[%clk 0:02:41]} 11. Ne4 {[%clk 0:02:11]}  Nxe4 {[%clk 0:02:38]} 12. Qxe4 {[%clk 0:02:09]}  d5 {[%clk 0:02:37]} 13. exd6 {[%clk 0:02:10]}  Bxd6 {[%clk 0:02:37]} 14. Bd3 {[%clk 0:02:05]}  g6 {[%clk 0:02:32]} 15. Bh6 {[%clk 0:02:02]}  Bf5 {[%clk 0:02:31]} 16. Qf3 {[%clk 0:01:52]}  Bxh2+ {[%clk 0:02:20]} 17. Kxh2 {[%clk 0:01:40]}  Qh4+ {[%clk 0:02:20]} 18. Kg1 {[%clk 0:01:41]}  Qxh6 {[%clk 0:02:16]} 19. Bxf5 {[%clk 0:01:40]}  gxf5 {[%clk 0:02:17]} 20. Qxf5 {[%clk 0:01:40]}  Rad8 {[%clk 0:02:11]} 21. Re3 {[%clk 0:01:38]}  Rd6 {[%clk 0:02:11]} 22. Rh3 {[%clk 0:01:35]}  Qg7 {[%clk 0:02:09]} 23. Re1 {[%clk 0:01:18]}  Rg6 {[%clk 0:02:07]} 24. g3 {[%clk 0:01:17]}  Qxb2 {[%clk 0:02:04]} 25. Re5 {[%clk 0:01:01]}  Rd8 {[%clk 0:01:13]} 26. Rxh7 {[%clk 0:00:33]}  Qc1+ {[%clk 0:01:12]} 27. Kg2 {[%clk 0:00:31]}  Kxh7 {[%clk 0:01:12]} 28. Qxf7+ {[%clk 0:00:28]}  Kh6 {[%clk 0:01:12]} 29. Re7 {[%clk 0:00:20]}  Rh8 {[%clk 0:01:03]} 30. Qf5 {[%clk 0:00:18]}  Qg5 {[%clk 0:00:48]} 31. Qh3+ {[%clk 0:00:16]}  Qh5 {[%clk 0:00:48]} 32. Qd7 {[%clk 0:00:16]}  Qd5+ {[%clk 0:00:44]} 33. Qxd5 {[%clk 0:00:16]}  cxd5 {[%clk 0:00:45]} 0-1


[Site "https://www.chess.com"]

[Event "Titled Tuesday Blitz April 12 Early 2022"]
[White "Zakhartsov, Vladimir"]
[Black "Pourkashiyan, Atousa"]
[WhiteFideId "4145097"]
[BlackFideId "12502014"]
[WhiteElo "2491"]
[BlackElo "2247"]
[Result "1-0"]
[Round "01"]
[TimeControl "180+1"]
[Date "2022.04.13"]
[WhiteClock "0:00:39"]
[BlackClock "0:00:09"]

1. d4 {[%clk 0:02:58]}  Nf6 {[%clk 0:02:59]} 2. c4 {[%clk 0:02:55]}  e6 {[%clk 0:02:59]} 3. Nf3 {[%clk 0:02:55]}  d5 {[%clk 0:02:58]} 4. g3 {[%clk 0:02:54]}  Be7 {[%clk 0:02:54]} 5. Bg2 {[%clk 0:02:54]}  O-O {[%clk 0:02:52]} 6. O-O {[%clk 0:02:48]}  dxc4 {[%clk 0:02:52]} 7. Qc2 {[%clk 0:02:45]}  a6 {[%clk 0:02:46]} 8. Qxc4 {[%clk 0:02:43]}  b5 {[%clk 0:02:44]} 9. Qc2 {[%clk 0:02:44]}  Bb7 {[%clk 0:02:44]} 10. Bd2 {[%clk 0:02:44]}  Be4 {[%clk 0:02:30]} 11. Qc1 {[%clk 0:02:42]}  Nbd7 {[%clk 0:02:22]} 12. Ba5 {[%clk 0:02:42]}  Ra7 {[%clk 0:02:13]} 13. Nbd2 {[%clk 0:02:40]}  Bd5 {[%clk 0:02:06]} 14. b4 {[%clk 0:02:37]}  Qa8 {[%clk 0:01:53]} 15. Qc2 {[%clk 0:02:27]}  Nb6 {[%clk 0:01:20]} 16. Rfe1 {[%clk 0:02:19]}  Ne4 {[%clk 0:00:47]} 17. a3 {[%clk 0:01:52]}  Nxd2 {[%clk 0:00:45]} 18. Qxd2 {[%clk 0:01:47]}  Nc4 {[%clk 0:00:45]} 19. Qc2 {[%clk 0:01:48]}  Nxa5 {[%clk 0:00:46]} 20. bxa5 {[%clk 0:01:49]}  c5 {[%clk 0:00:45]} 21. e4 {[%clk 0:01:44]}  Bb7 {[%clk 0:00:33]} 22. dxc5 {[%clk 0:01:33]}  Rc8 {[%clk 0:00:33]} 23. a4 {[%clk 0:01:33]}  Rxc5 {[%clk 0:00:32]} 24. Qb3 {[%clk 0:01:30]}  Bxe4 {[%clk 0:00:28]} 25. axb5 {[%clk 0:01:25]}  Rxb5 {[%clk 0:00:27]} 26. Qe3 {[%clk 0:01:25]}  Bc5 {[%clk 0:00:21]} 27. Qxe4 {[%clk 0:01:22]}  Qxe4 {[%clk 0:00:19]} 28. Rxe4 {[%clk 0:01:23]}  Rb2 {[%clk 0:00:20]} 29. Rf1 {[%clk 0:01:16]}  Rd7 {[%clk 0:00:20]} 30. Rc4 {[%clk 0:01:16]}  Rb5 {[%clk 0:00:16]} 31. Ne5 {[%clk 0:01:14]}  Rd2 {[%clk 0:00:15]} 32. Nc6 {[%clk 0:01:12]}  f6 {[%clk 0:00:15]} 33. Be4 {[%clk 0:00:45]}  g6 {[%clk 0:00:14]} 34. Rc2 {[%clk 0:00:43]}  Rd6 {[%clk 0:00:13]} 35. Rfc1 {[%clk 0:00:42]}  f5 {[%clk 0:00:13]} 36. Rxc5 {[%clk 0:00:42]}  Rxc5 {[%clk 0:00:12]} 37. Rxc5 {[%clk 0:00:43]}  fxe4 {[%clk 0:00:12]} 38. Nb4 {[%clk 0:00:43]}  Kf7 {[%clk 0:00:10]} 39. Rc6 {[%clk 0:00:43]}  Rd1+ {[%clk 0:00:09]} 40. Kg2 {[%clk 0:00:43]}  Rd2 {[%clk 0:00:10]} 41. Kf1 {[%clk 0:00:41]}  Rd1+ {[%clk 0:00:10]} 42. Ke2 {[%clk 0:00:42]}  Rh1 {[%clk 0:00:10]} 43. h4 {[%clk 0:00:41]}  Rb1 {[%clk 0:00:09]} 44. Nxa6 {[%clk 0:00:41]}  Rb2+ {[%clk 0:00:08]} 45. Ke3 {[%clk 0:00:41]}  Kf6 {[%clk 0:00:09]} 46. Nc5 {[%clk 0:00:40]}  Kf5 {[%clk 0:00:09]} 47. Nxe4 {[%clk 0:00:39]}  Ra2 {[%clk 0:00:09]} 48. Rc5+ {[%clk 0:00:36]}  e5 {[%clk 0:00:09]} 49. Nc3 {[%clk 0:00:36]}  Ra3 {[%clk 0:00:08]} 50. f4 {[%clk 0:00:36]}  Kg4 {[%clk 0:00:08]} 51. fxe5 {[%clk 0:00:37]}  Kxg3 {[%clk 0:00:09]} 52. e6 {[%clk 0:00:38]}  Kxh4 {[%clk 0:00:09]} 53. e7 {[%clk 0:00:38]}  Ra1 {[%clk 0:00:09]} 54. e8=Q {[%clk 0:00:38]}  Re1+ {[%clk 0:00:09]} 55. Ne2 {[%clk 0:00:39]} 1-0


[Site "https://www.chess.com"]